[Event "Titled Tuesday Blitz November 07 Late 2023"]
[White "Baches Garcia, Guillermo"]
[Black "Pavlidou, Ekaterini"]
[WhiteFideId "2209764"]
[BlackFideId "4213262"]
[WhiteElo "2458"]
[BlackElo "2356"]
[Result "1/2-1/2"]
[Round "9"]
[TimeControl "180+1"]
[Date "2023.11.07"]
[WhiteClock "0:00:10"]
[BlackClock "0:00:11"]
[Board "71"]

1. d4 {[%clk 0:03:00]}  Nf6 {[%clk 0:02:59]} 2. Nf3 {[%clk 0:03:01]}  e6 {[%clk 0:02:59]} 3. Bg5 {[%clk 0:03:02]}  d5 {[%clk 0:02:57]} 4. Nbd2 {[%clk 0:03:01]}  Nbd7 {[%clk 0:02:57]} 5. e3 {[%clk 0:03:02]}  h6 {[%clk 0:02:57]} 6. Bh4 {[%clk 0:03:01]}  Be7 {[%clk 0:02:58]} 7. Bd3 {[%clk 0:03:01]}  c5 {[%clk 0:02:57]} 8. c3 {[%clk 0:03:01]}  b6 {[%clk 0:02:56]} 9. Ne5 {[%clk 0:03:00]}  Bb7 {[%clk 0:02:54]} 10. f4 {[%clk 0:02:53]}  Ne4 {[%clk 0:02:51]} 11. Bxe7 {[%clk 0:02:40]}  Qxe7 {[%clk 0:02:50]} 12. Nxe4 {[%clk 0:02:37]}  Nxe5 {[%clk 0:02:43]} 13. fxe5 {[%clk 0:02:29]}  dxe4 {[%clk 0:02:40]} 14. Qa4+ {[%clk 0:02:23]}  Kf8 {[%clk 0:02:28]} 15. Ba6 {[%clk 0:02:22]}  Bxa6 {[%clk 0:02:14]} 16. Qxa6 {[%clk 0:02:23]}  Qg5 {[%clk 0:02:14]} 17. Qe2 {[%clk 0:02:15]}  f5 {[%clk 0:01:58]} 18. exf6 {[%clk 0:02:11]}  gxf6 {[%clk 0:01:58]} 19. O-O-O {[%clk 0:02:03]}  c4 {[%clk 0:01:33]} 20. Qxc4 {[%clk 0:01:52]}  Qxe3+ {[%clk 0:01:31]} 21. Kb1 {[%clk 0:01:52]}  f5 {[%clk 0:01:26]} 22. Qxe6 {[%clk 0:01:51]}  Rh7 {[%clk 0:01:16]} 23. Qxf5+ {[%clk 0:01:23]}  Rf7 {[%clk 0:01:15]} 24. Qd5 {[%clk 0:01:19]}  Re8 {[%clk 0:01:15]} 25. Rhe1 {[%clk 0:01:13]}  Qf4 {[%clk 0:00:55]} 26. g3 {[%clk 0:01:07]}  Qf3 {[%clk 0:00:49]} 27. Qc4 {[%clk 0:00:47]}  e3 {[%clk 0:00:45]} 28. Qe2 {[%clk 0:00:47]}  Qe4+ {[%clk 0:00:41]} 29. Qc2 {[%clk 0:00:47]}  Rf2 {[%clk 0:00:36]} 30. Qxe4 {[%clk 0:00:44]}  Rxe4 {[%clk 0:00:36]} 31. d5 {[%clk 0:00:33]}  e2 {[%clk 0:00:33]} 32. Rc1 {[%clk 0:00:31]}  Ke7 {[%clk 0:00:29]} 33. Kc2 {[%clk 0:00:30]}  Rxh2 {[%clk 0:00:22]} 34. Kd3 {[%clk 0:00:28]}  Re5 {[%clk 0:00:23]} 35. c4 {[%clk 0:00:27]}  Kd6 {[%clk 0:00:23]} 36. Rc2 {[%clk 0:00:26]}  Rg2 {[%clk 0:00:21]} 37. Rcxe2 {[%clk 0:00:22]}  Rxg3+ {[%clk 0:00:18]} 38. Kd2 {[%clk 0:00:22]}  Rxe2+ {[%clk 0:00:16]} 39. Rxe2 {[%clk 0:00:22]}  Rg4 {[%clk 0:00:16]} 40. b3 {[%clk 0:00:21]}  h5 {[%clk 0:00:16]} 41. Re6+ {[%clk 0:00:19]}  Kd7 {[%clk 0:00:16]} 42. Rh6 {[%clk 0:00:19]}  Rg2+ {[%clk 0:00:16]} 43. Kc3 {[%clk 0:00:19]}  Rh2 {[%clk 0:00:16]} 44. a4 {[%clk 0:00:18]}  h4 {[%clk 0:00:15]} 45. b4 {[%clk 0:00:19]}  h3 {[%clk 0:00:15]} 46. c5 {[%clk 0:00:19]}  bxc5 {[%clk 0:00:16]} 47. bxc5 {[%clk 0:00:19]}  Rh1 {[%clk 0:00:16]} 48. Rh7+ {[%clk 0:00:17]}  Kd8 {[%clk 0:00:16]} 49. c6 {[%clk 0:00:16]}  h2 {[%clk 0:00:15]} 50. Kb2 {[%clk 0:00:16]}  Rd1 {[%clk 0:00:14]} 51. Rxh2 {[%clk 0:00:15]}  Rxd5 {[%clk 0:00:14]} 52. Rh7 {[%clk 0:00:13]}  a5 {[%clk 0:00:13]} 53. Kb3 {[%clk 0:00:12]}  Rc5 {[%clk 0:00:13]} 54. Rd7+ {[%clk 0:00:12]}  Kc8 {[%clk 0:00:12]} 55. Ra7 {[%clk 0:00:11]}  Kb8 {[%clk 0:00:11]} 56. Ra6 {[%clk 0:00:10]}  Kc7 {[%clk 0:00:11]} 57. Kb2 {[%clk 0:00:10]}  Rc4 {[%clk 0:00:11]} 58. Kb3 {[%clk 0:00:10]}  Rc5 {[%clk 0:00:11]} 59. Kb2 {[%clk 0:00:10]}  Rc4 {[%clk 0:00:11]} 60. Kb3 {[%clk 0:00:10]}  Rc5 {[%clk 0:00:11]} 1/2-1/2


[Site "https://www.chess.com"]

[Event "Titled Tuesday Blitz November 07 Late 2023"]
[White "Jamal-Jamal-Jamal"]
[Black "Pace, Christopher"]
[BlackFideId "2610167"]
[WhiteElo "2339"]
[BlackElo "2424"]
[Result "1-0"]
[Round "9"]
[TimeControl "180+1"]
[Date "2023.11.07"]
[WhiteClock "0:00:50"]
[BlackClock "0:00:05"]
[Board "74"]

1. e4 {[%clk 0:02:59]}  e5 {[%clk 0:03:00]} 2. Nf3 {[%clk 0:02:57]}  Nc6 {[%clk 0:02:59]} 3. d4 {[%clk 0:02:56]}  exd4 {[%clk 0:02:59]} 4. Nxd4 {[%clk 0:02:56]}  Nf6 {[%clk 0:02:45]} 5. Nxc6 {[%clk 0:02:55]}  bxc6 {[%clk 0:02:45]} 6. e5 {[%clk 0:02:55]}  Qe7 {[%clk 0:02:44]} 7. Qe2 {[%clk 0:02:54]}  Nd5 {[%clk 0:02:44]} 8. h4 {[%clk 0:02:53]}  a5 {[%clk 0:02:23]} 9. c4 {[%clk 0:02:50]}  Ba6 {[%clk 0:02:17]} 10. g3 {[%clk 0:02:44]}  g6 {[%clk 0:02:09]} 11. b3 {[%clk 0:02:41]}  Bg7 {[%clk 0:02:05]} 12. Bb2 {[%clk 0:02:41]}  a4 {[%clk 0:02:03]} 13. Bg2 {[%clk 0:02:39]}  O-O {[%clk 0:01:48]} 14. O-O {[%clk 0:02:33]}  Rfb8 {[%clk 0:01:22]} 15. Nd2 {[%clk 0:02:25]}  a3 {[%clk 0:01:20]} 16. Bd4 {[%clk 0:02:24]}  Nb4 {[%clk 0:01:18]} 17. Nf3 {[%clk 0:02:15]}  c5 {[%clk 0:01:12]} 18. Bc3 {[%clk 0:02:13]}  Bb7 {[%clk 0:01:12]} 19. Rfe1 {[%clk 0:02:09]}  h6 {[%clk 0:01:07]} 20. Rad1 {[%clk 0:02:04]}  Bc6 {[%clk 0:01:07]} 21. h5 {[%clk 0:01:50]}  g5 {[%clk 0:01:07]} 22. Nh2 {[%clk 0:01:50]}  Bxg2 {[%clk 0:01:06]} 23. Kxg2 {[%clk 0:01:51]}  Nc6 {[%clk 0:01:04]} 24. Ng4 {[%clk 0:01:51]}  Nd4 {[%clk 0:01:01]} 25. Bxd4 {[%clk 0:01:50]}  cxd4 {[%clk 0:01:02]} 26. Rxd4 {[%clk 0:01:45]}  d6 {[%clk 0:00:57]} 27. Rdd1 {[%clk 0:01:26]}  dxe5 {[%clk 0:00:54]} 28. Ne3 {[%clk 0:01:26]}  Qe6 {[%clk 0:00:43]} 29. g4 {[%clk 0:01:25]}  e4 {[%clk 0:00:20]} 30. Nf5 {[%clk 0:01:24]}  Bf8 {[%clk 0:00:21]} 31. Qxe4 {[%clk 0:01:22]}  Qxe4+ {[%clk 0:00:21]} 32. Rxe4 {[%clk 0:01:23]}  Re8 {[%clk 0:00:21]} 33. Rde1 {[%clk 0:01:23]}  Rxe4 {[%clk 0:00:21]} 34. Rxe4 {[%clk 0:01:24]}  Rd8 {[%clk 0:00:20]} 35. Re2 {[%clk 0:01:25]}  c5 {[%clk 0:00:09]} 36. f4 {[%clk 0:01:18]}  gxf4 {[%clk 0:00:09]} 37. Kf3 {[%clk 0:01:19]}  Rd3+ {[%clk 0:00:05]} 38. Kxf4 {[%clk 0:01:16]}  Kh7 {[%clk 0:00:06]} 39. Ke5 {[%clk 0:01:14]}  Bg7+ {[%clk 0:00:04]} 40. Ke4 {[%clk 0:01:11]}  Rd1 {[%clk 0:00:04]} 41. Kf3 {[%clk 0:01:05]}  Bb2 {[%clk 0:00:04]} 42. Re7 {[%clk 0:00:52]}  Ra1 {[%clk 0:00:03]} 43. Rxf7+ {[%clk 0:00:53]}  Kg8 {[%clk 0:00:04]} 44. Nxh6+ {[%clk 0:00:53]}  Kh8 {[%clk 0:00:05]} 45. g5 {[%clk 0:00:51]}  Rxa2 {[%clk 0:00:04]} 46. g6 {[%clk 0:00:50]}  Ra1 {[%clk 0:00:05]} 47. Rh7# {[%clk 0:00:50]} 1-0


[Site "https://www.chess.com"]

[Event "Titled Tuesday Blitz November 07 Late 2023"]
[White "GatoRojo150"]
[Black "Bogaudinov, Rushan"]
[BlackFideId "4129288"]
[WhiteElo "2583"]
[BlackElo "2322"]
[Result "0-1"]
[Round "9"]
[TimeControl "180+1"]
[Date "2023.11.07"]
[WhiteClock "0:01:15"]
[BlackClock "0:02:04"]
[Board "76"]

1. e4 {[%clk 0:03:00]}  c5 {[%clk 0:02:59]} 2. Nf3 {[%clk 0:03:00]}  Nc6 {[%clk 0:02:59]} 3. Nc3 {[%clk 0:03:00]}  e6 {[%clk 0:02:57]} 4. d4 {[%clk 0:03:00]}  cxd4 {[%clk 0:02:57]} 5. Nxd4 {[%clk 0:03:01]}  a6 {[%clk 0:02:56]} 6. Bf4 {[%clk 0:03:00]}  Bb4 {[%clk 0:02:53]} 7. Nxc6 {[%clk 0:02:59]}  bxc6 {[%clk 0:02:51]} 8. Qg4 {[%clk 0:02:46]}  Nf6 {[%clk 0:02:45]} 9. Qxg7 {[%clk 0:02:03]}  Rg8 {[%clk 0:02:44]} 10. Qh6 {[%clk 0:02:03]}  Rg6 {[%clk 0:02:31]} 11. Qh4 {[%clk 0:02:02]}  Nxe4 {[%clk 0:02:25]} 12. Qxh7 {[%clk 0:01:41]}  Qf6 {[%clk 0:02:08]} 13. Bd2 {[%clk 0:01:15]}  Qxf2+ {[%clk 0:02:04]} 0-1


[Site "https://www.chess.com"]

[Event "Titled Tuesday Blitz November 07 Late 2023"]
[White "Becerra, Juan David"]
[Black "Mazurkiewicz, Michal"]
[WhiteFideId "4404998"]
[BlackFideId "1124943"]
[WhiteElo "2365"]
[BlackElo "2429"]
[Result "0-1"]
[Round "9"]
[TimeControl "180+1"]
[Date "2023.11.07"]
[WhiteClock "0:00:03"]
[BlackClock "0:00:35"]
[Board "79"]

1. d4 {[%clk 0:02:43]}  Nf6 {[%clk 0:02:59]} 2. Bf4 {[%clk 0:02:40]}  g6 {[%clk 0:02:58]} 3. Nc3 {[%clk 0:02:40]}  d5 {[%clk 0:02:57]} 4. Nf3 {[%clk 0:02:37]}  Bg7 {[%clk 0:02:57]} 5. e3 {[%clk 0:02:36]}  Nh5 {[%clk 0:02:55]} 6. Bg3 {[%clk 0:02:36]}  Nxg3 {[%clk 0:02:54]} 7. hxg3 {[%clk 0:02:37]}  Bg4 {[%clk 0:02:50]} 8. Be2 {[%clk 0:02:37]}  c6 {[%clk 0:02:49]} 9. Ne5 {[%clk 0:02:33]}  Bxe2 {[%clk 0:02:48]} 10. Qxe2 {[%clk 0:02:34]}  Bxe5 {[%clk 0:02:46]} 11. dxe5 {[%clk 0:02:35]}  e6 {[%clk 0:02:45]} 12. Qg4 {[%clk 0:02:30]}  Nd7 {[%clk 0:02:40]} 13. O-O-O {[%clk 0:02:22]}  Nxe5 {[%clk 0:02:39]} 14. Qd4 {[%clk 0:02:12]}  Qf6 {[%clk 0:02:33]} 15. Rh4 {[%clk 0:02:04]}  Nd7 {[%clk 0:02:30]} 16. Qb4 {[%clk 0:02:02]}  O-O-O {[%clk 0:02:24]} 17. Rf4 {[%clk 0:02:00]}  Qg7 {[%clk 0:02:18]} 18. Qa5 {[%clk 0:02:00]}  Kb8 {[%clk 0:02:10]} 19. Ra4 {[%clk 0:01:55]}  a6 {[%clk 0:02:00]} 20. Rb4 {[%clk 0:01:54]}  Kc8 {[%clk 0:01:49]} 21. Na4 {[%clk 0:01:45]}  Qe5 {[%clk 0:01:48]} 22. Nb6+ {[%clk 0:01:38]}  Nxb6 {[%clk 0:01:48]} 23. Qxb6 {[%clk 0:01:33]}  Qc7 {[%clk 0:01:48]} 24. Qa7 {[%clk 0:01:28]}  Rd7 {[%clk 0:01:23]} 25. e4 {[%clk 0:01:15]}  Rhd8 {[%clk 0:01:20]} 26. Qc5 {[%clk 0:00:44]}  dxe4 {[%clk 0:01:18]} 27. Rbd4 {[%clk 0:00:36]}  Rxd4 {[%clk 0:01:10]} 28. Rxd4 {[%clk 0:00:37]}  Rxd4 {[%clk 0:01:04]} 29. Qxd4 {[%clk 0:00:38]}  f5 {[%clk 0:01:00]} 30. Qh8+ {[%clk 0:00:34]}  Qd8 {[%clk 0:00:58]} 31. Qxh7 {[%clk 0:00:33]}  Qa5 {[%clk 0:00:46]} 32. Qg8+ {[%clk 0:00:29]}  Kc7 {[%clk 0:00:46]} 33. c3 {[%clk 0:00:23]}  Qxa2 {[%clk 0:00:43]} 34. Qxg6 {[%clk 0:00:20]}  Qc4 {[%clk 0:00:38]} 35. Qf7+ {[%clk 0:00:19]}  Kb6 {[%clk 0:00:38]} 36. g4 {[%clk 0:00:19]}  Qf1+ {[%clk 0:00:38]} 37. Kc2 {[%clk 0:00:18]}  Qxf2+ {[%clk 0:00:38]} 38. Kb3 {[%clk 0:00:18]}  e3 {[%clk 0:00:36]} 39. Qf6 {[%clk 0:00:06]}  e2 {[%clk 0:00:35]} 40. Qd8+ {[%clk 0:00:03]}  Ka7 {[%clk 0:00:35]} 0-1


[Site "https://www.chess.com"]

[Event "Titled Tuesday Blitz November 07 Late 2023"]
[White "Skaric, Djuro"]
[Black "Weisz, Bryan"]
[WhiteFideId "934569"]
[BlackFideId "30934133"]
[WhiteElo "2359"]
[BlackElo "2426"]
[Result "0-1"]
[Round "9"]
[TimeControl "180+1"]
[Date "2023.11.07"]
[WhiteClock "0:00:32"]
[BlackClock "0:00:36"]
[Board "80"]

1. g3 {[%clk 0:03:00]}  g6 {[%clk 0:02:50]} 2. Bg2 {[%clk 0:03:01]}  Bg7 {[%clk 0:02:50]} 3. Nc3 {[%clk 0:03:01]}  Nc6 {[%clk 0:02:51]} 4. d3 {[%clk 0:03:00]}  d6 {[%clk 0:02:51]} 5. e4 {[%clk 0:03:00]}  e5 {[%clk 0:02:52]} 6. f4 {[%clk 0:03:00]}  exf4 {[%clk 0:02:50]} 7. Bxf4 {[%clk 0:02:59]}  Nge7 {[%clk 0:02:47]} 8. Nf3 {[%clk 0:02:59]}  O-O {[%clk 0:02:42]} 9. O-O {[%clk 0:02:58]}  Bg4 {[%clk 0:02:33]} 10. Qd2 {[%clk 0:02:58]}  d5 {[%clk 0:02:29]} 11. Ne5 {[%clk 0:02:53]}  Nxe5 {[%clk 0:02:25]} 12. Bxe5 {[%clk 0:02:52]}  Bxe5 {[%clk 0:02:26]} 13. d4 {[%clk 0:02:48]}  dxe4 {[%clk 0:02:20]} 14. Nxe4 {[%clk 0:02:09]}  Qxd4+ {[%clk 0:02:19]} 15. Qxd4 {[%clk 0:02:09]}  Bxd4+ {[%clk 0:02:19]} 16. Kh1 {[%clk 0:02:09]}  Nc6 {[%clk 0:02:10]} 17. c3 {[%clk 0:02:07]}  Bg7 {[%clk 0:02:08]} 18. Nc5 {[%clk 0:02:02]}  Ne5 {[%clk 0:02:03]} 19. b4 {[%clk 0:01:59]}  c6 {[%clk 0:01:59]} 20. Nxb7 {[%clk 0:01:59]}  Nc4 {[%clk 0:01:55]} 21. Bxc6 {[%clk 0:01:53]}  Rac8 {[%clk 0:01:54]} 22. b5 {[%clk 0:01:49]}  Nd2 {[%clk 0:01:49]} 23. Rf4 {[%clk 0:01:48]}  h5 {[%clk 0:01:44]} 24. Kg2 {[%clk 0:01:44]}  Bxc3 {[%clk 0:01:39]} 25. Rc1 {[%clk 0:01:44]}  Be5 {[%clk 0:01:27]} 26. Ra4 {[%clk 0:01:40]}  Bf3+ {[%clk 0:01:21]} 27. Kf2 {[%clk 0:01:37]}  Bxc6 {[%clk 0:01:18]} 28. bxc6 {[%clk 0:01:34]}  f5 {[%clk 0:01:07]} 29. Ke3 {[%clk 0:01:33]}  Ne4 {[%clk 0:01:07]} 30. Rxa7 {[%clk 0:01:32]}  Nf6 {[%clk 0:01:00]} 31. a4 {[%clk 0:01:27]}  Rf7 {[%clk 0:00:59]} 32. a5 {[%clk 0:01:26]}  Nd5+ {[%clk 0:00:59]} 33. Kf3 {[%clk 0:01:25]}  Nb4 {[%clk 0:00:58]} 34. a6 {[%clk 0:00:58]}  Nxc6 {[%clk 0:00:59]} 35. Rxc6 {[%clk 0:00:37]}  Rxc6 {[%clk 0:00:58]} 36. Ra8+ {[%clk 0:00:38]}  Rf8 {[%clk 0:00:52]} 37. Nd8 {[%clk 0:00:38]}  Rc3+ {[%clk 0:00:46]} 38. Ke2 {[%clk 0:00:36]}  Ra3 {[%clk 0:00:43]} 39. a7 {[%clk 0:00:36]}  Bf6 {[%clk 0:00:38]} 40. Rb8 {[%clk 0:00:34]}  Rxd8 {[%clk 0:00:36]} 41. a8=Q {[%clk 0:00:34]}  Rxa8 {[%clk 0:00:36]} 42. Rb6 {[%clk 0:00:32]}  Kg7 {[%clk 0:00:36]} 0-1


[Site "https://www.chess.com"]

[Event "Titled Tuesday Blitz November 07 Late 2023"]
[White "Novikova, Galina"]
[Black "Harriott, Tyrell"]
[WhiteFideId "4157095"]
[BlackFideId "2086484"]
[WhiteElo "2417"]
[BlackElo "2352"]
[Result "1-0"]
[Round "9"]
[TimeControl "180+1"]
[Date "2023.11.07"]
[WhiteClock "0:00:22"]
[BlackClock "0:00:00"]
[Board "81"]

1. e4 {[%clk 0:03:00]}  d5 {[%clk 0:01:08]} 2. exd5 {[%clk 0:02:56]}  Nf6 {[%clk 0:01:08]} 3. Nf3 {[%clk 0:02:56]}  Qxd5 {[%clk 0:01:08]} 4. Be2 {[%clk 0:02:56]}  Bg4 {[%clk 0:01:08]} 5. d4 {[%clk 0:02:56]}  Nc6 {[%clk 0:01:08]} 6. Be3 {[%clk 0:02:57]}  O-O-O {[%clk 0:01:08]} 7. c4 {[%clk 0:02:57]}  Qh5 {[%clk 0:01:08]} 8. Nbd2 {[%clk 0:02:58]}  e5 {[%clk 0:01:08]} 9. d5 {[%clk 0:02:58]}  e4 {[%clk 0:01:03]} 10. dxc6 {[%clk 0:02:45]}  exf3 {[%clk 0:01:02]} 11. cxb7+ {[%clk 0:02:46]}  Kxb7 {[%clk 0:00:55]} 12. Bxf3+ {[%clk 0:02:47]}  Bxf3 {[%clk 0:00:54]} 13. Qxf3+ {[%clk 0:02:48]}  Qxf3 {[%clk 0:00:54]} 14. Nxf3 {[%clk 0:02:49]}  Bb4+ {[%clk 0:00:53]} 15. Ke2 {[%clk 0:02:40]}  Ng4 {[%clk 0:00:51]} 16. a3 {[%clk 0:02:39]}  Nxe3 {[%clk 0:00:49]} 17. fxe3 {[%clk 0:02:37]}  Bc5 {[%clk 0:00:48]} 18. b4 {[%clk 0:02:37]}  Be7 {[%clk 0:00:47]} 19. Rad1 {[%clk 0:02:30]}  Bf6 {[%clk 0:00:45]} 20. Nd4 {[%clk 0:02:23]}  Rhe8 {[%clk 0:00:42]} 21. Kf3 {[%clk 0:02:23]}  g6 {[%clk 0:00:40]} 22. b5 {[%clk 0:02:13]}  Bg5 {[%clk 0:00:32]} 23. Rhe1 {[%clk 0:02:12]}  Bh6 {[%clk 0:00:31]} 24. a4 {[%clk 0:01:58]}  f5 {[%clk 0:00:27]} 25. a5 {[%clk 0:01:55]}  Re4 {[%clk 0:00:25]} 26. Re2 {[%clk 0:01:20]}  Rde8 {[%clk 0:00:22]} 27. c5 {[%clk 0:01:03]}  f4 {[%clk 0:00:11]} 28. c6+ {[%clk 0:01:03]}  Kc8 {[%clk 0:00:11]} 29. exf4 {[%clk 0:00:37]}  Rxf4+ {[%clk 0:00:12]} 30. Kg3 {[%clk 0:00:36]}  Rd8 {[%clk 0:00:10]} 31. Red2 {[%clk 0:00:29]}  Re4 {[%clk 0:00:07]} 32. Rd3 {[%clk 0:00:30]}  Bg7 {[%clk 0:00:06]} 33. Nf3 {[%clk 0:00:26]}  Rf8 {[%clk 0:00:04]} 34. Rd7 {[%clk 0:00:23]}  Bf6 {[%clk 0:00:03]} 35. Rxh7 {[%clk 0:00:22]}  g5 {[%clk 0:00:00]} 36. Rdd7 {[%clk 0:00:22]} 1-0


[Site "https://www.chess.com"]

[Event "Titled Tuesday Blitz November 07 Late 2023"]
[White "Ardila, Oscar Humberto"]
[Black "ATM622"]
[WhiteFideId "4404742"]
[WhiteElo "2320"]
[BlackElo "2412"]
[Result "0-1"]
[Round "9"]
[TimeControl "180+1"]
[Date "2023.11.07"]
[WhiteClock "0:00:00"]
[BlackClock "0:00:20"]
[Board "82"]

1. d4 {[%clk 0:02:59]}  Nf6 {[%clk 0:02:58]} 2. c4 {[%clk 0:02:59]}  e6 {[%clk 0:02:57]} 3. Nc3 {[%clk 0:02:59]}  d5 {[%clk 0:02:56]} 4. Nf3 {[%clk 0:02:58]}  Be7 {[%clk 0:02:56]} 5. Bg5 {[%clk 0:02:58]}  h6 {[%clk 0:02:54]} 6. Bh4 {[%clk 0:02:58]}  O-O {[%clk 0:02:52]} 7. e3 {[%clk 0:02:58]}  Ne4 {[%clk 0:02:51]} 8. Bxe7 {[%clk 0:02:56]}  Qxe7 {[%clk 0:02:50]} 9. Nxe4 {[%clk 0:02:57]}  dxe4 {[%clk 0:02:50]} 10. Nd2 {[%clk 0:02:57]}  f5 {[%clk 0:02:50]} 11. Qh5 {[%clk 0:02:57]}  e5 {[%clk 0:02:46]} 12. O-O-O {[%clk 0:02:39]}  exd4 {[%clk 0:02:43]} 13. exd4 {[%clk 0:02:39]}  Nc6 {[%clk 0:02:43]} 14. Nb3 {[%clk 0:02:37]}  a5 {[%clk 0:02:40]} 15. d5 {[%clk 0:02:35]}  a4 {[%clk 0:02:36]} 16. Nd4 {[%clk 0:02:31]}  Nxd4 {[%clk 0:02:28]} 17. Rxd4 {[%clk 0:02:31]}  a3 {[%clk 0:02:28]} 18. b3 {[%clk 0:02:24]}  Qf6 {[%clk 0:02:19]} 19. Qd1 {[%clk 0:02:19]}  c5 {[%clk 0:02:18]} 20. dxc6 {[%clk 0:02:19]}  bxc6 {[%clk 0:02:19]} 21. c5 {[%clk 0:02:13]}  Be6 {[%clk 0:02:09]} 22. Qd2 {[%clk 0:00:51]}  Rad8 {[%clk 0:01:59]} 23. Rd6 {[%clk 0:00:50]}  Qa1+ {[%clk 0:01:54]} 24. Kc2 {[%clk 0:00:51]}  Qxa2+ {[%clk 0:01:45]} 25. Kc1 {[%clk 0:00:50]}  Qa1+ {[%clk 0:01:42]} 26. Kc2 {[%clk 0:00:50]}  Qb2+ {[%clk 0:01:42]} 27. Kd1 {[%clk 0:00:50]}  Bxb3+ {[%clk 0:01:42]} 28. Ke2 {[%clk 0:00:50]}  Bc4+ {[%clk 0:01:41]} 29. Ke3 {[%clk 0:00:50]}  f4+ {[%clk 0:01:37]} 30. Kxe4 {[%clk 0:00:47]}  Bd5+ {[%clk 0:01:37]} 31. Kd3 {[%clk 0:00:46]}  Qb3+ {[%clk 0:01:23]} 32. Qc3 {[%clk 0:00:43]}  Be4+ {[%clk 0:01:16]} 33. Kd2 {[%clk 0:00:43]}  Rxd6+ {[%clk 0:01:00]} 34. cxd6 {[%clk 0:00:43]}  Qd5+ {[%clk 0:00:58]} 35. Bd3 {[%clk 0:00:43]}  Qxd6 {[%clk 0:00:53]} 36. f3 {[%clk 0:00:37]}  Bxd3 {[%clk 0:00:46]} 37. Qxd3 {[%clk 0:00:35]}  Qb4+ {[%clk 0:00:46]} 38. Qc3 {[%clk 0:00:26]}  Rd8+ {[%clk 0:00:44]} 39. Kc2 {[%clk 0:00:26]}  Qa4+ {[%clk 0:00:44]} 40. Kc1 {[%clk 0:00:24]}  a2 {[%clk 0:00:42]} 41. Kb2 {[%clk 0:00:21]}  Rb8+ {[%clk 0:00:20]} 42. Ka1 {[%clk 0:00:21]}  Qb5 {[%clk 0:00:21]} 43. Qc2 {[%clk 0:00:03]}  Qe5+ {[%clk 0:00:21]} 44. Kxa2 {[%clk 0:00:00]}  Qa5+ {[%clk 0:00:20]} 0-1


[Site "https://www.chess.com"]

[Event "Titled Tuesday Blitz November 07 Late 2023"]
[White "Romero Ruscalleda, Josep"]
[Black "Carrasco Miranda, Andres"]
[WhiteFideId "2231859"]
[BlackFideId "3405990"]
[WhiteElo "2317"]
[BlackElo "2411"]
[Result "0-1"]
[Round "9"]
[TimeControl "180+1"]
[Date "2023.11.07"]
[WhiteClock "0:00:13"]
[BlackClock "0:00:34"]
[Board "83"]

1. e4 {[%clk 0:03:00]}  e5 {[%clk 0:02:56]} 2. Nf3 {[%clk 0:03:00]}  Nc6 {[%clk 0:02:56]} 3. Bc4 {[%clk 0:02:59]}  Bc5 {[%clk 0:02:55]} 4. c3 {[%clk 0:02:59]}  Nf6 {[%clk 0:02:55]} 5. d3 {[%clk 0:02:57]}  d6 {[%clk 0:02:54]} 6. a4 {[%clk 0:02:55]}  a5 {[%clk 0:02:54]} 7. Nbd2 {[%clk 0:02:51]}  Ba7 {[%clk 0:02:54]} 8. Bb3 {[%clk 0:02:48]}  O-O {[%clk 0:02:53]} 9. Nc4 {[%clk 0:02:48]}  h6 {[%clk 0:02:51]} 10. h3 {[%clk 0:02:47]}  Be6 {[%clk 0:02:47]} 11. O-O {[%clk 0:02:45]}  Ne7 {[%clk 0:02:47]} 12. Nxa5 {[%clk 0:02:42]}  Bxf2+ {[%clk 0:02:46]} 13. Rxf2 {[%clk 0:02:41]}  Rxa5 {[%clk 0:02:47]} 14. Bxe6 {[%clk 0:02:39]}  fxe6 {[%clk 0:02:47]} 15. Qb3 {[%clk 0:02:40]}  Qc8 {[%clk 0:02:31]} 16. Bd2 {[%clk 0:02:28]}  Ra8 {[%clk 0:02:29]} 17. Raf1 {[%clk 0:02:25]}  b6 {[%clk 0:02:28]} 18. Nh4 {[%clk 0:02:10]}  Kh7 {[%clk 0:02:26]} 19. Be3 {[%clk 0:01:55]}  Qd7 {[%clk 0:02:25]} 20. Ra1 {[%clk 0:01:47]}  Nh5 {[%clk 0:02:20]} 21. Rxf8 {[%clk 0:01:42]}  Rxf8 {[%clk 0:02:21]} 22. a5 {[%clk 0:01:41]}  bxa5 {[%clk 0:02:20]} 23. Rxa5 {[%clk 0:01:41]}  Ng6 {[%clk 0:02:11]} 24. Nxg6 {[%clk 0:01:37]}  Kxg6 {[%clk 0:02:12]} 25. Ra7 {[%clk 0:01:35]}  Qf7 {[%clk 0:02:12]} 26. Kh2 {[%clk 0:01:28]}  Kh7 {[%clk 0:01:49]} 27. Qb7 {[%clk 0:01:26]}  Qg6 {[%clk 0:01:18]} 28. g4 {[%clk 0:01:23]}  Nf4 {[%clk 0:01:01]} 29. Qxc7 {[%clk 0:01:20]}  Nxh3 {[%clk 0:01:01]} 30. Qe7 {[%clk 0:00:42]}  Rf3 {[%clk 0:00:55]} 31. Bb6 {[%clk 0:00:20]}  Qxg4 {[%clk 0:00:49]} 32. Ra8 {[%clk 0:00:16]}  Qg3+ {[%clk 0:00:33]} 33. Kh1 {[%clk 0:00:13]}  Rf1+ {[%clk 0:00:34]} 0-1


[Site "https://www.chess.com"]

[Event "Titled Tuesday Blitz November 07 Late 2023"]
[White "Polaczek, Richard"]
[Black "Zampronha, Wladimir Camilo"]
[WhiteFideId "200026"]
[BlackFideId "2103087"]
[WhiteElo "2410"]
[BlackElo "2312"]
[Result "1-0"]
[Round "9"]
[TimeControl "180+1"]
[Date "2023.11.07"]
[WhiteClock "0:00:57"]
[BlackClock "0:00:00"]
[Board "84"]

1. d4 {[%clk 0:03:00]}  Nf6 {[%clk 0:02:59]} 2. Bg5 {[%clk 0:03:00]}  Ne4 {[%clk 0:02:59]} 3. Bf4 {[%clk 0:02:59]}  c5 {[%clk 0:02:59]} 4. f3 {[%clk 0:02:59]}  Qa5+ {[%clk 0:02:53]} 5. c3 {[%clk 0:02:59]}  Nf6 {[%clk 0:02:53]} 6. Nd2 {[%clk 0:02:58]}  cxd4 {[%clk 0:02:52]} 7. Nb3 {[%clk 0:02:58]}  Qb6 {[%clk 0:02:53]} 8. Qxd4 {[%clk 0:02:57]}  Qxd4 {[%clk 0:02:51]} 9. cxd4 {[%clk 0:02:56]}  d5 {[%clk 0:02:37]} 10. e3 {[%clk 0:02:55]}  Nc6 {[%clk 0:02:37]} 11. Bb5 {[%clk 0:02:52]}  e6 {[%clk 0:02:35]} 12. Ne2 {[%clk 0:02:50]}  Bd7 {[%clk 0:02:35]} 13. Nc3 {[%clk 0:02:46]}  Be7 {[%clk 0:02:25]} 14. Rc1 {[%clk 0:02:45]}  O-O {[%clk 0:02:23]} 15. g4 {[%clk 0:02:39]}  Rfc8 {[%clk 0:02:21]} 16. h4 {[%clk 0:02:35]}  Ne8 {[%clk 0:02:19]} 17. g5 {[%clk 0:02:33]}  a6 {[%clk 0:02:16]} 18. Bd3 {[%clk 0:02:26]}  b5 {[%clk 0:02:15]} 19. Kf2 {[%clk 0:02:23]}  Nb4 {[%clk 0:02:14]} 20. Bb1 {[%clk 0:02:20]}  Nc6 {[%clk 0:01:56]} 21. h5 {[%clk 0:02:16]}  Bd6 {[%clk 0:01:48]} 22. Ne2 {[%clk 0:02:09]}  Bxf4 {[%clk 0:01:47]} 23. Nxf4 {[%clk 0:02:09]}  Nd6 {[%clk 0:01:47]} 24. Nc5 {[%clk 0:02:05]}  Be8 {[%clk 0:01:47]} 25. g6 {[%clk 0:02:01]}  Nc4 {[%clk 0:00:54]} 26. b3 {[%clk 0:01:50]}  Na3 {[%clk 0:00:46]} 27. Bd3 {[%clk 0:01:41]}  a5 {[%clk 0:00:29]} 28. gxf7+ {[%clk 0:01:26]}  Bxf7 {[%clk 0:00:29]} 29. Ncxe6 {[%clk 0:01:26]}  Nb4 {[%clk 0:00:27]} 30. Bf5 {[%clk 0:01:19]}  Rxc1 {[%clk 0:00:18]} 31. Rxc1 {[%clk 0:01:17]}  a4 {[%clk 0:00:15]} 32. bxa4 {[%clk 0:01:15]}  bxa4 {[%clk 0:00:15]} 33. Ng5 {[%clk 0:01:12]}  Nc4 {[%clk 0:00:09]} 34. Bxh7+ {[%clk 0:01:10]}  Kf8 {[%clk 0:00:08]} 35. a3 {[%clk 0:00:59]}  Nxa3 {[%clk 0:00:00]} 36. Rc7 {[%clk 0:00:57]} 1-0


[Site "https://www.chess.com"]